bitfinex/quotes_BTCUSD_20250513
["timestamp","ask_amount","ask_price","bid_price","bid_amount"]
[1747140682725,0.04254881,103760.0,103750.0,0.00904531]
[1747140682726,0.27638148,103760.0,103750.0,0.00904531]
[1747140682936,0.24692728,103760.0,103750.0,0.00604531]
[1747140683221,0.24792728,103760.0,103750.0,0.00904531]
[1747140683408,0.24492728,103760.0,103750.0,0.00904531]
[1747140684459,0.24492728,103760.0,103750.0,0.01204531]
[1747140684686,0.24492728,103760.0,103750.0,0.56368649]
[1747140684687,0.02991165,103760.0,103750.0,0.56368649]
[1747140684811,0.03954918,103760.0,103750.0,0.55404859]
[1747140685033,0.02991156,103760.0,103750.0,0.48878605]
[1747140685232,0.03954909,103760.0,103750.0,0.49842395]
[1747140685454,0.23230159,103760.0,103750.0,0.49842404]
[1747140685660,0.02991156,103760.0,103750.0,0.49842404]
[1747140685866,0.03954899,103760.0,103750.0,0.59573279]
[1747140686068,0.02991156,103760.0,103750.0,0.59573279]
[1747140686322,0.03954918,103760.0,103750.0,0.59573279]
[1747140686723,0.23230168,103760.0,103750.0,0.58609489]
[1747140686859,0.03954918,103760.0,103750.0,0.59573279]
[1747140687903,0.23230168,103760.0,103750.0,0.95609489]
[1747140688713,0.23230168,103760.0,103750.0,0.58609489]
[1747140689258,0.23230168,103760.0,103750.0,0.68340429]
[1747140689635,0.22266471,103760.0,103750.0,0.6737663]
[1747140690132,0.02027459,103760.0,103750.0,0.60905672]
[1747140690350,0.23230224,103760.0,103750.0,0.5764569]
[1747140690546,0.22266499,103760.0,103750.0,0.55718064]
[1747140690803,0.22266499,103760.0,103750.0,0.566819]
[1747140691003,0.22266499,103760.0,103750.0,0.57645727]
[1747140691220,0.22266499,103760.0,103750.0,0.33104088]
[1747140691444,0.23609012,103760.0,103750.0,0.26948531]
[1747140691691,0.23609012,103760.0,103750.0,0.5149017]
[1747140691953,0.34331714,103760.0,103750.0,0.01204531]
[1747140692735,0.35007166,103760.0,103750.0,0.01204531]
[1747140692953,0.44738106,103760.0,103750.0,0.01204531]
[1747140693154,0.78738106,103760.0,103750.0,0.01204531]
[1747140694130,0.78738106,103760.0,103750.0,0.00904531]
[1747140694488,0.88469046,103760.0,103750.0,0.00904531]
[1747140694682,0.88369046,103760.0,103750.0,0.00604531]
[1747140695018,0.71125404,103760.0,103750.0,0.00704531]
[1747140695869,0.61394464,103760.0,103750.0,0.2524617]
[1747140696072,0.27394464,103760.0,103750.0,0.2524617]
[1747140696479,0.26719012,103760.0,103750.0,0.2524617]
[1747140698138,0.26719012,103760.0,103750.0,0.00704531]
[1747140698415,0.31385811,103760.0,103750.0,0.00704531]
[1747140698781,0.31385811,103760.0,103750.0,0.2524617]
[1747140699066,0.26719012,103760.0,103750.0,0.2524617]
[1747140699304,0.23709012,103760.0,103750.0,0.2524617]
[1747140699526,0.20439012,103760.0,103750.0,0.2524617]
[1747140700162,0.20439012,103760.0,103750.0,0.25547408]
[1747140702878,0.26609012,103760.0,103750.0,0.01005769]
[1747140703110,0.38977513,103760.0,103750.0,0.01005769]
[1747140703360,0.34321714,103760.0,103750.0,0.00704531]
[1747140703619,0.34997166,103760.0,103750.0,0.00704531]
[1747140704766,0.44728106,103760.0,103750.0,0.00704531]
[1747140705211,0.78728106,103760.0,103750.0,0.00704531]
[1747140709426,0.71015404,103760.0,103750.0,0.00704531]
[1747140709820,0.80044297,103760.0,103750.0,0.00704531]
[1747140711627,0.71015404,103760.0,103750.0,0.00704531]
[1747140711845,0.33895404,103760.0,103750.0,0.2524617]
[1747140712073,0.33895404,103760.0,103750.0,0.25735226]
[1747140712500,0.21114464,103760.0,103750.0,0.25735226]
[1747140712939,0.20439012,103760.0,103750.0,0.25735226]
[1747140713155,0.20439012,103760.0,103750.0,0.26036463]
[1747140713371,0.20439012,103760.0,103750.0,0.36611341]
[1747140713619,0.1947525,103760.0,103750.0,0.29316463]
[1747140715357,0.20438993,103760.0,103750.0,0.49557407]
[1747140715579,0.21402709,103760.0,103750.0,0.52847407]
[1747140715786,0.21402709,103760.0,103750.0,0.78399407]
[1747140715995,0.21402709,103760.0,103750.0,0.8782911]
[1747140716429,0.21402709,103760.0,103750.0,0.8453911]
[1747140718445,0.21402709,103760.0,103750.0,0.7480817]
[1747140718653,0.01163688,103760.0,103750.0,0.89606718]
[1747140718864,0.02127404,103760.0,103750.0,1.23606718]
[1747140719579,0.03091138,103760.0,103750.0,1.23606718]
[1747140719711,0.02991129,103760.0,103750.0,1.60606718]
[1747140719915,0.02991129,103760.0,103750.0,1.70337658]
[1747140720122,0.02991129,103760.0,103750.0,1.70437658]
[1747140720354,0.001,103760.0,103750.0,3.03079097]
[1747140720561,0.28623274,103780.0,103770.0,0.22164316]
[1747140720562,0.30550316,103780.0,103770.0,0.22164316]
[1747140720775,0.30838486,103780.0,103770.0,0.83164921]
[1747140721640,0.29874938,103780.0,103770.0,0.8316494]
[1747140721847,0.29974938,103780.0,103770.0,0.8326494]
[1747140722335,0.29974938,103780.0,103770.0,0.84228591]
[1747140722589,0.29974938,103780.0,103770.0,0.84328591]
[1747140723275,0.02027125,103780.0,103770.0,0.86255836]
[1747140723497,0.001,103780.0,103770.0,0.89576064]
[1747140723720,0.001,103780.0,103770.0,1.26886064]
[1747140723941,0.001,103780.0,103770.0,1.52370064]
[1747140725509,0.002,103790.0,103780.0,0.62412152]
[1747140725746,0.002,103790.0,103780.0,1.31883671]
[1747140725924,0.002,103790.0,103780.0,1.43248571]
[1747140726164,0.002,103790.0,103780.0,1.31883671]
[1747140726615,0.02126828,103790.0,103780.0,1.31883671]
[1747140726844,0.012634,103790.0,103780.0,1.69283671]
[1747140727082,0.02226818,103790.0,103780.0,1.69283671]
[1747140727304,0.23423473,103790.0,103780.0,1.77807238]
[1747140727519,0.23523473,103790.0,103780.0,1.28234759]
[1747140727741,0.22560055,103790.0,103780.0,1.4023969]
[1747140727963,0.21596618,103790.0,103780.0,0.50785639]
[1747140728387,0.21596618,103790.0,103780.0,0.70057174]
[1747140728633,0.21596618,103790.0,103780.0,0.71020732]
[1747140729762,0.21596618,103790.0,103780.0,0.7102075]
[1747140730385,0.21596618,103790.0,103780.0,0.72947875]
[1747140730646,0.20633162,103790.0,103780.0,0.71984317]
[1747140730869,0.19669679,103790.0,103780.0,0.50785639]
[1747140731507,0.22769679,103790.0,103780.0,0.25341639]
[1747140731745,0.28409571,103790.0,103780.0,0.008]
[1747140732269,0.26059679,103790.0,103780.0,0.008]
[1747140732701,0.26059679,103790.0,103780.0,0.25341639]
[1747140732961,0.22769679,103790.0,103780.0,0.25341639]
[1747140733985,0.25829679,103790.0,103780.0,0.25341639]
[1747140734203,0.25829679,103790.0,103780.0,0.008]
[1747140734605,0.25829679,103790.0,103780.0,0.25341639]
[1747140736056,0.22769679,103790.0,103780.0,0.25341639]
[1747140737608,0.19669679,103790.0,103780.0,0.54344114]
[1747140738047,0.19669679,103790.0,103780.0,0.5530769]
[1747140738429,0.19669679,103790.0,103780.0,0.36036155]
[1747140738678,0.19669679,103790.0,103780.0,0.25341639]
[1747140740430,0.19669679,103790.0,103780.0,0.4557675]
[1747140740940,0.19669679,103790.0,103780.0,0.25341639]
[1747140741956,0.22869679,103790.0,103780.0,0.25341639]
[1747140742172,0.25879679,103790.0,103780.0,0.008]
[1747140742617,0.31165706,103790.0,103780.0,0.008]
[1747140743043,0.25879679,103790.0,103780.0,0.008]
[1747140743472,0.25879679,103790.0,103780.0,0.25341639]
[1747140743715,0.22869679,103790.0,103780.0,0.25341639]
[1747140743936,0.19669679,103790.0,103780.0,0.44613174]
[1747140744193,0.19669679,103790.0,103780.0,0.25341639]
[1747140744402,0.20633153,103790.0,103780.0,0.5319083]
[1747140744835,0.20633153,103790.0,103780.0,0.45576741]
[1747140745054,0.20633153,103790.0,103780.0,0.25341639]
[1747140745286,0.20633153,103790.0,103780.0,0.44613174]
[1747140745742,0.19669679,103790.0,103780.0,0.25341639]
[1747140746149,0.19669679,103790.0,103780.0,0.45576741]
[1747140746857,0.19669679,103790.0,103780.0,0.25341639]
[1747140747304,0.29980909,103790.0,103780.0,0.008]
[1747140747737,0.26019679,103790.0,103780.0,0.008]
[1747140748192,0.26694409,103790.0,103780.0,0.008]
[1747140751054,0.26694409,103790.0,103780.0,0.25341639]
[1747140751309,0.20344409,103790.0,103780.0,0.25341639]
[1747140751520,0.20344409,103790.0,103780.0,0.45576741]
[1747140751739,0.20344409,103790.0,103780.0,0.44613174]
[1747140751979,0.19669679,103790.0,103780.0,0.44613174]
[1747140752188,0.19669679,103790.0,103780.0,0.25341639]
[1747140754288,0.19669679,103790.0,103780.0,0.008]
[1747140754554,0.29950909,103790.0,103780.0,0.008]
[1747140754983,0.26664409,103790.0,103780.0,0.008]
[1747140755582,0.23495093,103780.0,103770.0,0.00933664]
[1747140756908,0.23595093,103780.0,103770.0,0.009]
[1747140757120,0.23695093,103780.0,103770.0,0.25441639]
[1747140757354,0.34637795,103780.0,103770.0,0.009]
[1747140757573,0.35212525,103780.0,103770.0,0.006]
[1747140757803,0.21202709,103760.0,103750.0,1.27887798]
[1747140758028,0.21202709,103760.0,103750.0,1.47349678]
[1747140759104,0.21202709,103760.0,103750.0,1.47337678]
[1747140759344,0.21202709,103760.0,103750.0,1.45921106]
[1747140759531,0.21202709,103760.0,103750.0,1.02186166]
[1747140760433,0.21302709,103760.0,103750.0,1.02186166]
[1747140761305,0.21402709,103760.0,103750.0,1.02486166]
[1747140763066,0.21402709,103760.0,103750.0,1.0393292]
[1747140764589,0.21402709,103760.0,103750.0,1.1366386]
[1747140764833,0.21402709,103760.0,103750.0,1.0393292]
[1747140765113,0.21402709,103760.0,103750.0,1.24173883]
[1747140765313,0.21402709,103760.0,103750.0,1.23210028]
[1747140765993,0.20438993,103760.0,103750.0,1.24173883]
[1747140766277,0.20438993,103760.0,103750.0,0.82533883]
[1747140766474,0.1947525,103760.0,103750.0,1.4179103]
[1747140766682,0.04054861,103760.0,103750.0,1.57474239]
[1747140766856,0.03091109,103760.0,103750.0,1.57474239]
[1747140767340,0.03091109,103760.0,103750.0,1.54324239]
[1747140767542,0.03091109,103760.0,103750.0,1.57474239]
[1747140767543,0.02127384,103760.0,103750.0,1.57474239]
[1747140768595,0.04054852,103760.0,103750.0,1.57474239]
[1747140768817,0.03091109,103760.0,103750.0,1.57474239]
[1747140769440,0.02127384,103760.0,103750.0,1.57474239]
[1747140772006,0.03091109,103760.0,103750.0,1.57474239]
[1747140772269,0.03091118,103760.0,103750.0,1.57474239]
[1747140772479,0.02127384,103760.0,103750.0,1.54324239]
[1747140772690,0.02127384,103760.0,103750.0,1.44593299]
[1747140773243,0.02127375,103760.0,103750.0,1.47913299]
[1747140773444,0.01163678,103760.0,103750.0,1.47913299]
[1747140773640,0.02127375,103760.0,103750.0,1.47913299]
[1747140773846,0.02127375,103760.0,103750.0,1.57644239]
[1747140776298,0.02127375,103760.0,103750.0,1.331026]
[1747140776506,0.03091091,103760.0,103750.0,1.57644239]
[1747140776765,0.02127375,103760.0,103750.0,1.57644239]
[1747140776968,0.03091081,103760.0,103750.0,1.57644239]
[1747140778983,0.05018549,103760.0,103750.0,1.54324239]
[1747140779219,0.04054797,103760.0,103750.0,1.54324239]
[1747140779874,0.04054797,103760.0,103750.0,1.03976239]
[1747140780080,0.05018522,103760.0,103750.0,1.54208239]
[1747140780285,0.05018522,103760.0,103750.0,1.03976239]
[1747140780516,0.04054844,103760.0,103750.0,1.03976239]
[1747140780685,0.03091119,103760.0,103750.0,1.03976239]
[1747140780917,0.03091119,103760.0,103750.0,1.54200239]
[1747140781159,0.01163697,103760.0,103750.0,1.54200239]
[1747140781807,0.02127413,103760.0,103750.0,1.54200239]
[1747140782237,0.01163697,103760.0,103750.0,1.57450239]
[1747140782370,0.02127403,103760.0,103750.0,1.57450239]
[1747140782589,0.01163697,103760.0,103750.0,1.57450239]
[1747140782817,0.02127413,103760.0,103750.0,1.57450239]
[1747140782973,0.02127403,103760.0,103750.0,1.57450239]
[1747140783180,0.03091119,103760.0,103750.0,1.57450239]
[1747140783397,0.01163697,103760.0,103750.0,1.57450239]
[1747140783628,0.01163688,103760.0,103750.0,1.57450239]
[1747140784052,0.03091119,103760.0,103750.0,1.54200239]
[1747140784293,0.24293865,103760.0,103750.0,0.91353883]
[1747140784517,0.26340177,103760.0,103750.0,1.08249719]
[1747140784723,0.27462746,103760.0,103750.0,0.62503281]
[1747140784967,0.27462746,103760.0,103750.0,0.37539281]
[1747140785181,0.27462746,103760.0,103750.0,0.27808341]
[1747140785621,0.27462746,103760.0,103750.0,0.47085449]
[1747140786120,0.27462746,103760.0,103750.0,0.48049304]
[1747140786334,0.27462746,103760.0,103750.0,0.72590943]
[1747140786552,0.27462746,103760.0,103750.0,0.74518607]
[1747140786769,0.27462746,103760.0,103750.0,0.75482406]
[1747140787313,0.27462746,103760.0,103750.0,0.48586789]
[1747140787544,0.26499012,103760.0,103750.0,0.2738198]
[1747140787764,0.26499012,103760.0,103750.0,0.02840341]
[1747140787987,0.31847528,103760.0,103750.0,0.01393587]
[1747140788205,0.31847528,103760.0,103750.0,0.01694821]
[1747140788426,0.42255253,103760.0,103750.0,0.01694821]
[1747140788858,0.42155253,103760.0,103750.0,0.01694821]
[1747140789079,0.36806737,103760.0,103750.0,0.01694821]
[1747140789322,0.36906737,103760.0,103750.0,0.01694821]
[1747140789544,0.95448376,103760.0,103750.0,0.01393587]
[1747140790046,0.27175797,103760.0,103750.0,0.25935226]
[1747140790278,0.27075797,103760.0,103750.0,0.01093587]
[1747140790515,0.27275797,103760.0,103750.0,0.01193587]
[1747140790702,0.26599012,103760.0,103750.0,0.01193587]
[1747140790912,0.27575797,103760.0,103750.0,0.01193587]
[1747140791983,0.27575797,103760.0,103730.0,0.45750427]
[1747140791984,0.21206806,103740.0,103730.0,0.45750427]
[1747140792192,0.20244866,103730.0,103720.0,0.94656386]
[1747140792405,0.00964013,103730.0,103720.0,1.05356249]
[1747140792612,0.2748886,103730.0,103720.0,0.24900854]
[1747140792825,0.2748886,103730.0,103720.0,0.45448939]
[1747140793055,0.2748886,103730.0,103720.0,0.69990578]
[1747140793478,0.2422886,103730.0,103720.0,0.70954684]
[1747140793939,0.2422886,103730.0,103720.0,0.45448939]
[1747140794167,0.2432886,103730.0,103720.0,0.26466255]
[1747140794399,0.23364847,103730.0,103720.0,0.70290578]
[1747140794580,0.23464847,103730.0,103720.0,0.71254702]
[1747140795120,0.23464847,103730.0,103720.0,0.2514776]
[1747140795326,0.23464847,103730.0,103720.0,0.44430444]
[1747140795536,0.23464847,103730.0,103720.0,0.45394559]
[1747140795963,0.23464847,103730.0,103720.0,0.44430444]
[1747140796183,0.23464847,103730.0,103720.0,0.45394578]
[1747140797189,0.23464847,103730.0,103720.0,0.2514776]
[1747140797403,0.31054228,103730.0,103720.0,0.00606121]
[1747140797779,0.26474847,103730.0,103720.0,0.00606121]
[1747140797879,0.23464847,103730.0,103720.0,0.46358684]
[1747140798128,0.23464847,103730.0,103720.0,0.2514776]
[1747140798254,0.23464847,103730.0,103720.0,0.2085292]
[1747140798463,0.23464847,103730.0,103720.0,0.55125499]
[1747140799423,0.23464847,103730.0,103720.0,0.45394559]
[1747140800737,0.20444847,103730.0,103720.0,0.47322743]
[1747140800955,0.20444847,103730.0,103720.0,0.46358656]
[1747140801166,0.002,103730.0,103720.0,0.46358656]
[1747140801377,0.002,103730.0,103720.0,0.94313665]
[1747140801600,0.02127951,103730.0,103720.0,1.51594005]
[1747140802033,0.02127951,103730.0,103720.0,1.86858405]
[1747140802470,0.002,103730.0,103720.0,1.86858405]
[1747140803155,0.002,103730.0,103720.0,2.15630044]
[1747140803380,0.002,103730.0,103720.0,2.57274044]
[1747140803563,0.002,103730.0,103720.0,2.94274044]
[1747140803817,0.002,103730.0,103720.0,2.93972777]
[1747140804057,0.002,103730.0,103720.0,2.52742777]
[1747140804271,0.002,103730.0,103720.0,2.93972777]
[1747140804505,0.07712702,103760.0,103750.0,0.22168562]
[1747140804727,0.07712702,103760.0,103750.0,1.46643434]
[1747140804951,0.002,103770.0,103760.0,0.22166425]
[1747140805175,0.01163586,103770.0,103760.0,0.56439004]
[1747140805397,0.03090804,103770.0,103760.0,0.56439004]
[1747140805611,0.04054436,103770.0,103760.0,0.66169944]
[1747140805828,0.05018077,103770.0,103760.0,0.66169944]
[1747140806475,0.01163586,103770.0,103760.0,0.69169944]
[1747140806694,0.04054491,103770.0,103760.0,0.65206247]
[1747140806914,0.25684289,103770.0,103760.0,0.54511582]
[1747140807147,0.28694289,103770.0,103760.0,0.80251307]
[1747140807359,0.25684289,103770.0,103760.0,0.82178729]
[1747140807572,0.07374565,103770.0,103760.0,0.82278729]
[1747140807998,0.26647958,103770.0,103760.0,0.82278729]
[1747140808739,0.25684354,103770.0,103760.0,0.79371591]
[1747140808959,0.25684354,103770.0,103760.0,0.81299068]
[1747140809569,0.04483632,103770.0,103760.0,0.90066274]
[1747140809775,0.22364289,103770.0,103760.0,0.91029999]
[1747140810434,0.02127236,103770.0,103760.0,0.82262756]
[1747140810636,0.01163604,103770.0,103760.0,0.82262756]
[1747140810854,0.02127227,103770.0,103760.0,0.85402756]
[1747140811478,0.002,103770.0,103760.0,3.21799822]
[1747140811700,0.002,103770.0,103760.0,3.91827822]
[1747140811927,0.002,103770.0,103760.0,4.01558762]
[1747140812974,0.01163586,103770.0,103760.0,3.13620523]
[1747140813179,0.03090831,103770.0,103760.0,1.95830471]
[1747140813426,0.04054491,103770.0,103760.0,1.95830471]
[1747140813619,0.02127199,103770.0,103760.0,1.95830471]
[1747140813863,0.03090831,103770.0,103760.0,1.95830471]
[1747140814079,0.04054482,103770.0,103760.0,2.05561411]
[1747140814320,0.05307245,103770.0,103760.0,2.0556143]
[1747140814533,0.07234537,103770.0,103760.0,2.0556143]
[1747140814776,0.26508014,103770.0,103760.0,2.28326008]
[1747140814997,0.04343623,103770.0,103760.0,2.30253421]
[1747140815172,0.04343623,103770.0,103760.0,1.93249421]
[1747140815383,0.02127218,103770.0,103760.0,1.93249421]
[1747140816503,0.002,103770.0,103760.0,1.93249421]
[1747140816797,0.002,103770.0,103760.0,4.0420176]
[1747140817040,0.002,103770.0,103760.0,2.17774921]
[1747140817762,0.002,103770.0,103760.0,1.93070921]
[1747140818009,0.06420869,103770.0,103760.0,1.8349449]
[1747140818222,0.29004327,103770.0,103760.0,0.5147094]
[1747140818447,0.28040704,103770.0,103760.0,0.24776]
[1747140818909,0.28040704,103770.0,103760.0,0.71010717]
[1747140819133,0.27077053,103770.0,103760.0,0.80741657]
[1747140819581,0.29004354,103770.0,103760.0,0.81705373]
[1747140819797,0.29004354,103770.0,103760.0,0.80741657]
[1747140820033,0.002,103770.0,103760.0,1.50941658]
[1747140820249,0.002,103770.0,103760.0,1.88295419]
[1747140821574,0.002,103770.0,103760.0,2.12837058]
[1747140822418,0.002,103770.0,103760.0,2.49837058]
[1747140823731,0.002,103770.0,103760.0,2.53147058]
[1747140828521,0.002,103790.0,103780.0,0.57616237]
[1747140828708,0.00209341,103790.0,103780.0,1.19913109]
[1747140829128,0.00209341,103790.0,103780.0,1.56913109]
[1747140829344,0.00209341,103790.0,103780.0,1.60083109]
[1747140829806,0.00609341,103790.0,103780.0,1.60183109]
[1747140830048,0.00609341,103790.0,103780.0,1.57013109]
[1747140830485,0.00209341,103790.0,103780.0,1.56913109]
[1747140830908,0.00609341,103790.0,103780.0,1.57013109]
[1747140831127,0.03739341,103790.0,103780.0,1.57013109]
[1747140831379,0.03339341,103790.0,103780.0,1.56913109]
[1747140832112,0.04302769,103790.0,103780.0,1.56913109]
[1747140832312,0.03339341,103790.0,103780.0,1.81469109]
[1747140832477,0.04302741,103790.0,103780.0,1.81469109]
[1747140832893,0.0526615,103790.0,103780.0,1.81469109]
[1747140833106,0.06229578,103790.0,103780.0,1.81469109]
[1747140833237,0.04302741,103790.0,103780.0,1.44469109]
[1747140833447,0.07412741,103790.0,103780.0,1.44469109]
[1747140833664,0.08376159,103790.0,103780.0,1.81469109]
[1747140834318,0.03339341,103790.0,103780.0,1.44469109]
[1747140834765,0.03339341,103790.0,103780.0,1.81469109]
[1747140836536,0.00209341,103790.0,103780.0,3.14261209]
[1747140836730,0.00209341,103790.0,103780.0,3.17471209]
[1747140836991,0.00209341,103790.0,103780.0,3.14261209]
[1747140837223,0.00209341,103790.0,103780.0,3.1422472]
[1747140837439,0.00209341,103790.0,103780.0,3.1735472]
[1747140837895,0.00209341,103790.0,103780.0,2.5579352]
[1747140838291,0.00209341,103790.0,103780.0,2.4257622]
[1747140842252,0.04342759,103790.0,103780.0,1.8143262]
[1747140842473,0.03379341,103790.0,103780.0,2.0705632]
[1747140845389,0.00209341,103790.0,103780.0,2.0705632]
[1747140846531,0.00209341,103790.0,103780.0,2.1012632]
[1747140847410,0.00209341,103790.0,103780.0,1.8250032]
[1747140847630,0.03239341,103790.0,103780.0,2.0692432]
[1747140848268,0.03239341,103790.0,103780.0,2.0698432]
[1747140849842,0.03239341,103790.0,103780.0,1.8130062]
[1747140850067,0.03239341,103790.0,103780.0,1.5687662]
[1747140850300,0.03239341,103790.0,103780.0,1.53284327]
[1747140850301,0.0941967,103790.0,103780.0,1.53284327]
[1747140850584,0.27725931,103790.0,103780.0,0.54398042]
[1747140850800,0.27725931,103790.0,103780.0,1.40716826]
[1747140850801,0.08456205,103790.0,103780.0,1.40716826]
[1747140851012,0.0941967,103790.0,103780.0,1.40226252]
[1747140851280,0.07492759,103790.0,103780.0,1.41680337]
[1747140851494,0.09419661,103790.0,103780.0,1.51411277]
[1747140851711,0.09419652,103790.0,103780.0,1.51411277]
[1747140851925,0.09419661,103790.0,103780.0,1.51411277]
[1747140852370,0.07492759,103790.0,103780.0,1.51411277]
[1747140852591,0.03239341,103790.0,103780.0,1.51411277]
[1747140852815,0.00209341,103790.0,103780.0,3.02318577]
[1747140853584,0.00209341,103790.0,103780.0,1.51411277]
[1747140853808,0.00209341,103790.0,103780.0,1.96590377]
[1747140854019,0.03529341,103790.0,103780.0,1.64328977]
[1747140854420,0.03529341,103790.0,103780.0,2.01328977]
[1747140854692,0.07602759,103790.0,103780.0,1.88411277]
[1747140854954,0.08566205,103790.0,103780.0,1.88411277]
[1747140855157,0.08566196,103790.0,103780.0,1.88411277]
[1747140855339,0.07602759,103790.0,103780.0,1.88411277]
[1747140855532,0.0760275,103790.0,103780.0,1.88411277]
[1747140855748,0.08566178,103790.0,103780.0,1.88411277]
[1747140856924,0.0760275,103790.0,103780.0,1.88411277]
[1747140857137,0.03529341,103790.0,103780.0,1.88411277]
[1747140857569,0.00209341,103790.0,103780.0,1.88411277]
[1747140857780,0.00209341,103790.0,103780.0,2.93047777]
[1747140858423,0.00209341,103790.0,103780.0,2.56504477]
[1747140859551,0.00209341,103790.0,103780.0,2.59714477]
[1747140862764,0.00309341,103790.0,103780.0,2.60114477]
[1747140862986,0.00309341,103790.0,103780.0,2.56904477]
[1747140863285,0.00409341,103790.0,103780.0,2.57304477]
[1747140866519,0.00409341,103790.0,103780.0,2.98924477]
[1747140866732,0.00409341,103790.0,103780.0,2.30831277]
[1747140866916,0.00409341,103790.0,103780.0,3.31746977]
[1747140867468,0.00409341,103790.0,103780.0,3.07350977]
[1747140867652,0.03429341,103790.0,103780.0,2.78547277]
[1747140870614,0.00409341,103790.0,103780.0,2.78547277]
[1747140871604,0.00409341,103790.0,103780.0,2.81707277]
[1747140871818,0.00409341,103790.0,103780.0,2.78547277]
[1747140872719,0.03659341,103790.0,103780.0,2.78547277]
[1747140872917,0.03659341,103790.0,103780.0,2.29859277]
[1747140873047,0.03659341,103790.0,103780.0,2.78499277]
[1747140873493,0.29902731,103790.0,103780.0,1.70345305]
[1747140873715,0.29902731,103790.0,103780.0,0.59276579]
[1747140873716,0.28939405,103790.0,103780.0,0.59276579]
[1747140873927,0.27975968,103790.0,103780.0,0.79511681]
[1747140874208,0.27975968,103790.0,103780.0,0.81929324]
[1747140874433,0.27975968,103790.0,103780.0,0.35072579]
[1747140874651,0.27875968,103790.0,103780.0,0.58868579]
[1747140874866,0.27875968,103790.0,103780.0,0.58968579]
[1747140875077,0.27875968,103790.0,103780.0,0.60422664]
[1747140875639,0.27775968,103790.0,103780.0,0.60022664]
[1747140876115,0.27775968,103790.0,103780.0,0.60122664]
[1747140877225,0.27775968,103790.0,103780.0,0.90088706]
[1747140877438,0.27775968,103790.0,103780.0,0.91052264]
[1747140879654,0.27775968,103790.0,103780.0,0.81321324]
[1747140879869,0.26812503,103790.0,103780.0,0.60122664]
[1747140880497,0.26812503,103790.0,103780.0,0.79394199]
[1747140880779,0.26812503,103790.0,103780.0,0.80357775]
[1747140881426,0.26812503,103790.0,103780.0,0.81321342]
[1747140882882,0.26812503,103790.0,103780.0,0.60122664]
[1747140883947,0.26812503,103790.0,103780.0,0.79394199]
[1747140884152,0.26812503,103790.0,103780.0,0.80357775]
[1747140886065,0.26812503,103790.0,103780.0,0.6108624]
[1747140886197,0.26812503,103790.0,103780.0,0.60122664]
[1747140886395,0.26812503,103790.0,103780.0,0.80357775]
[1747140886627,0.26812503,103790.0,103780.0,0.81321342]
[1747140888390,0.26812503,103790.0,103780.0,0.60122664]
[1747140888572,0.2584902,103790.0,103780.0,0.79394199]
[1747140889467,0.2584902,103790.0,103780.0,0.60122664]
[1747140889997,0.2584902,103790.0,103780.0,0.01654085]
[1747140890596,0.2584902,103790.0,103780.0,0.002]
[1747140891076,0.2584902,103790.0,103780.0,0.01654085]
[1747140891288,0.2584902,103790.0,103780.0,0.001]
[1747140891952,0.3557996,103790.0,103780.0,0.001]
[1747140892140,0.20194235,103780.0,103770.0,0.01454085]
[1747140892278,0.26554235,103780.0,103770.0,0.01454085]
[1747140893522,0.26754235,103780.0,103770.0,0.01554085]
[1747140893915,0.26954235,103780.0,103770.0,0.01554085]
[1747140896947,0.32570655,103780.0,103770.0,0.01554085]
[1747140897156,0.26954235,103780.0,103770.0,0.01554085]
[1747140897953,0.27629169,103780.0,103770.0,0.01554085]
[1747140898188,0.2120269,103760.0,103750.0,1.16327308]
[1747140898415,0.26609012,103760.0,103750.0,0.24541639]
[1747140898627,0.26609012,103760.0,103750.0,0.44782602]
[1747140898842,0.26609012,103760.0,103750.0,0.45746448]
[1747140899509,0.06111183,103760.0,103750.0,0.48837892]
[1747140899722,0.26450186,103760.0,103750.0,0.48174102]
[1747140900137,0.2548648,103760.0,103750.0,0.4913791]
[1747140900345,0.2548648,103760.0,103750.0,0.52057516]
[1747140901446,0.24522746,103760.0,103750.0,0.51093708]
[1747140901647,0.27672746,103760.0,103750.0,0.51093708]
[1747140901898,0.26709003,103760.0,103750.0,0.5012989]
[1747140902099,0.2574525,103760.0,103750.0,0.48202208]
[1747140902272,0.2574525,103760.0,103750.0,0.49166054]
[1747140902478,0.2574525,103760.0,103750.0,0.5012989]
[1747140903363,0.2574525,103760.0,103750.0,0.51093717]
[1747140903775,0.2574525,103760.0,103750.0,0.60824657]
[1747140903991,0.2574525,103760.0,103750.0,0.289251]
[1747140904207,0.2574525,103760.0,103750.0,0.48202208]
[1747140904413,0.2574525,103760.0,103750.0,0.29888927]
[1747140904636,0.2574525,103760.0,103750.0,0.49166035]
[1747140904844,0.2574525,103760.0,103750.0,0.50129853]
[1747140905422,0.27672709,103760.0,103750.0,0.59860793]
[1747140905629,0.27672709,103760.0,103750.0,0.50129853]
[1747140906325,0.27672709,103760.0,103750.0,0.23660569]
[1747140906527,0.27672709,103760.0,103750.0,0.005]
[1747140906528,0.33457952,103760.0,103750.0,0.005]
[1747140906975,0.6840607,103760.0,103750.0,0.005]
[1747140907184,1.1213701,103760.0,103750.0,0.005]
[1747140907643,0.87495371,103760.0,103750.0,0.002]
[1747140907853,0.26640944,103750.0,103740.0,0.002]
[1747140908077,0.70371884,103750.0,103740.0,0.002]
[1747140908287,0.71047423,103750.0,103740.0,0.002]
[1747140908498,0.79819954,103750.0,103740.0,0.002]
[1747140909138,0.79819954,103750.0,103740.0,0.00204854]
[1747140910262,0.71047423,103750.0,103740.0,0.00204854]
[1747140910472,0.71347423,103750.0,103740.0,0.00204854]
[1747140911414,0.71160457,103750.0,103740.0,0.00204854]
[1747140912517,0.70484918,103750.0,103740.0,0.00204854]
[1747140914876,0.60753978,103750.0,103740.0,0.00204854]
[1747140915582,0.26753978,103750.0,103740.0,0.00204854]
[1747140915831,0.26753978,103750.0,103740.0,0.24746493]
[1747140916273,0.26753978,103750.0,103740.0,0.00204854]
[1747140916705,0.23593978,103750.0,103740.0,0.24746493]
[1747140917178,0.26683978,103750.0,103740.0,0.24746493]
[1747140917434,0.31276901,103750.0,103740.0,0.00204854]
[1747140919932,0.41007841,103750.0,103740.0,0.00204854]
[1747140921544,0.75007841,103750.0,103740.0,0.00204854]
[1747140921791,0.75682013,103750.0,103740.0,0.00204854]
[1747140922017,1.01223652,103750.0,103740.0,0.00204854]
[1747140922247,1.25462013,103750.0,103740.0,0.00204854]
[1747140922463,1.50003652,103750.0,103740.0,0.00204854]
[1747140922705,1.49903652,103750.0,103740.0,0.00204854]
[1747140922939,1.48703652,103750.0,103740.0,0.00204854]
[1747140923162,1.48803652,103750.0,103740.0,0.00204854]
[1747140923407,1.48903652,103750.0,103740.0,0.00304854]
[1747140923841,1.49503652,103750.0,103740.0,0.00404854]
[1747140924066,1.45910729,103750.0,103740.0,0.00404854]
[1747140924705,1.2136909,103750.0,103740.0,0.00404854]
[1747140924911,1.45710729,103750.0,103740.0,0.00304854]
[1747140925116,1.50980729,103750.0,103740.0,0.00304854]